Workbook

Sheet Лист1
A1: Поступление на площадку, ед | I1: Реал КС,ед
A2: ID | B2: 1 | C2: 2 | D2: 3 | E2: 4 | F2: 5 | G2: Сумм,ед | I2: ID | J2: 1 | K2: 2 | L2: 3 | M2: 4 | N2: 5 | O2: Сумм,ед
A3: Венера | B3: 200 | C3: 340 | E3: 120 | G3: =SUM(B3:F3) -> 660 | I3: Венера | J3: 20 | K3: 140 | M3: 160 | N3: 340 | O3: =SUM(J3:N3) -> 660
A5: Стоимость единицы поступления,руб | H5: Реал КС,руб
A6: ID | B6: 1 | C6: 2 | D6: 3 | E6: 4 | F6: 5 | H6: Наценка | I6: ID | J6: 1 | K6: 2 | L6: 3 | M6: 4 | N6: 5 | O6: Сумм,руб
A7: Венера | B7: 280 | C7: 282 | D7: 283 | E7: 285 | F7: 285 | H7: 1.4 | I7: Венера | J7: =J10*$H$7 -> 7840 | K7: =K10*$H$7 -> 54880 | L7: 0 | M7: 63056 | N7: 134736 | O7: =SUM(J7:N7) -> 260512
A8: Стоимость поступления,руб | I8: Стоимость Реал КС,руб
A9: ID | B9: 1 | C9: 2 | D9: 3 | E9: 4 | F9: 5 | G9: Сумм,руб | I9: ID | J9: 1 | K9: 2 | L9: 3 | M9: 4 | N9: 5 | O9: Сумм,руб
A10: Венера | B10: =B3*B7 -> 56000 | C10: =C3*C7 -> 95880 | D10: =D3*D7 -> 0 | E10: =E3*E7 -> 34200 | F10: =F3*F7 -> 0 | G10: =SUM(B10:F10) -> 186080 | I10: Венера | J10: =SUM(B31:B35) -> 5600 | K10: =SUM(C31:C35) -> 39200 | L10: =SUM(D31:D35) -> 0 | M10: =SUM(E31:E35) -> 45040 | N10: =SUM(F31:F35) -> 96240 | O10: =SUM(J10:N10) -> 186080
J11: =Raschet($B$3:$F$3,$J$3:$N$3,$B$7:$F$7,$B$15:$F$15,J$9) -> 5600 | K11: =Raschet($B$3:$F$3,$J$3:$N$3,$B$7:$F$7,$B$15:$F$15,K$9) -> 39200 | L11: =Raschet($B$3:$F$3,$J$3:$N$3,$B$7:$F$7,$B$15:$F$15,L$9) -> 0 | M11: =Raschet($B$3:$F$3,$J$3:$N$3,$B$7:$F$7,$B$15:$F$15,M$9) -> 45040 | N11: =Raschet($B$3:$F$3,$J$3:$N$3,$B$7:$F$7,$B$15:$F$15,N$9) -> 96240
L12: Единиц | M12: Стоимость ед | N12: Составная стоимость реал
A13: Остатки на площадке,ед | L13: 20 | M13: 280 | N13: =L13*M13 -> 5600
A14: ID | B14: 1 | C14: 2 | D14: 3 | E14: 4 | F14: 5 | L14: 140 | M14: 280 | N14: =L14*M14 -> 39200
A15: Венера | B15: =B3-J3 -> 180 | C15: =B15+C3-K3 -> 380 | D15: =C15+D3-L3 -> 380 | E15: =D15+E3-M3 -> 340 | F15: =E15+F3-N3 -> 0 | L15: 40 | M15: 280 | N15: 11200
L16: 120 | M16: 282 | N16: 33840
L17: 220 | M17: 282 | N17: 62040
L18: 120 | M18: 285 | N18: 34200
A22: dat
A23: 1 | B23: =IF(SUM(OFFSET($B$3,0,0,1,$A23))-IF($A23-1>0,SUM(OFFSET(B$23,0,0,$A23-1,1)),0)-SUM(OFFSET($J$3,0,0,1,B$14))>0,SUM(OFFSET($B$3,0,0,1,$A23))-IF($A23-1>0,SUM(OFFSET(B$23,0,0,$A23-1,1)),0)-SUM(OFFSET($J$3,0,0,1,B$14)),0) -> 180 | C23: =IF(SUM(OFFSET($B$3,0,0,1,$A23))-IF($A23-1>0,SUM(OFFSET(C$23,0,0,$A23-1,1)),0)-SUM(OFFSET($J$3,0,0,1,C$14))>0,SUM(OFFSET($B$3,0,0,1,$A23))-IF($A23-1>0,SUM(OFFSET(C$23,0,0,$A23-1,1)),0)-SUM(OFFSET($J$3,0,0,1,C$14)),0) -> 40 | D23: =IF(SUM(OFFSET($B$3,0,0,1,$A23))-IF($A23-1>0,SUM(OFFSET(D$23,0,0,$A23-1,1)),0)-SUM(OFFSET($J$3,0,0,1,D$14))>0,SUM(OFFSET($B$3,0,0,1,$A23))-IF($A23-1>0,SUM(OFFSET(D$23,0,0,$A23-1,1)),0)-SUM(OFFSET($J$3,0,0,1,D$14)),0) -> 40 | E23: =IF(SUM(OFFSET($B$3,0,0,1,$A23))-IF($A23-1>0,SUM(OFFSET(E$23,0,0,$A23-1,1)),0)-SUM(OFFSET($J$3,0,0,1,E$14))>0,SUM(OFFSET($B$3,0,0,1,$A23))-IF($A23-1>0,SUM(OFFSET(E$23,0,0,$A23-1,1)),0)-SUM(OFFSET($J$3,0,0,1,E$14)),0) -> 0 | F23: =IF(SUM(OFFSET($B$3,0,0,1,$A23))-IF($A23-1>0,SUM(OFFSET(F$23,0,0,$A23-1,1)),0)-SUM(OFFSET($J$3,0,0,1,F$14))>0,SUM(OFFSET($B$3,0,0,1,$A23))-IF($A23-1>0,SUM(OFFSET(F$23,0,0,$A23-1,1)),0)-SUM(OFFSET($J$3,0,0,1,F$14)),0) -> 0 | G23: npost
A24: 2 | C24: =IF(SUM(OFFSET($B$3,0,0,1,$A24))-IF($A24-1>0,SUM(OFFSET(C$23,0,0,$A24-1,1)),0)-SUM(OFFSET($J$3,0,0,1,C$14))>0,SUM(OFFSET($B$3,0,0,1,$A24))-IF($A24-1>0,SUM(OFFSET(C$23,0,0,$A24-1,1)),0)-SUM(OFFSET($J$3,0,0,1,C$14)),0) -> 340 | D24: =IF(SUM(OFFSET($B$3,0,0,1,$A24))-IF($A24-1>0,SUM(OFFSET(D$23,0,0,$A24-1,1)),0)-SUM(OFFSET($J$3,0,0,1,D$14))>0,SUM(OFFSET($B$3,0,0,1,$A24))-IF($A24-1>0,SUM(OFFSET(D$23,0,0,$A24-1,1)),0)-SUM(OFFSET($J$3,0,0,1,D$14)),0) -> 340 | E24: =IF(SUM(OFFSET($B$3,0,0,1,$A24))-IF($A24-1>0,SUM(OFFSET(E$23,0,0,$A24-1,1)),0)-SUM(OFFSET($J$3,0,0,1,E$14))>0,SUM(OFFSET($B$3,0,0,1,$A24))-IF($A24-1>0,SUM(OFFSET(E$23,0,0,$A24-1,1)),0)-SUM(OFFSET($J$3,0,0,1,E$14)),0) -> 220 | F24: =IF(SUM(OFFSET($B$3,0,0,1,$A24))-IF($A24-1>0,SUM(OFFSET(F$23,0,0,$A24-1,1)),0)-SUM(OFFSET($J$3,0,0,1,F$14))>0,SUM(OFFSET($B$3,0,0,1,$A24))-IF($A24-1>0,SUM(OFFSET(F$23,0,0,$A24-1,1)),0)-SUM(OFFSET($J$3,0,0,1,F$14)),0) -> 0
A25: 3 | D25: =IF(SUM(OFFSET($B$3,0,0,1,$A25))-IF($A25-1>0,SUM(OFFSET(D$23,0,0,$A25-1,1)),0)-SUM(OFFSET($J$3,0,0,1,D$14))>0,SUM(OFFSET($B$3,0,0,1,$A25))-IF($A25-1>0,SUM(OFFSET(D$23,0,0,$A25-1,1)),0)-SUM(OFFSET($J$3,0,0,1,D$14)),0) -> 0 | E25: =IF(SUM(OFFSET($B$3,0,0,1,$A25))-IF($A25-1>0,SUM(OFFSET(E$23,0,0,$A25-1,1)),0)-SUM(OFFSET($J$3,0,0,1,E$14))>0,SUM(OFFSET($B$3,0,0,1,$A25))-IF($A25-1>0,SUM(OFFSET(E$23,0,0,$A25-1,1)),0)-SUM(OFFSET($J$3,0,0,1,E$14)),0) -> 0 | F25: =IF(SUM(OFFSET($B$3,0,0,1,$A25))-IF($A25-1>0,SUM(OFFSET(F$23,0,0,$A25-1,1)),0)-SUM(OFFSET($J$3,0,0,1,F$14))>0,SUM(OFFSET($B$3,0,0,1,$A25))-IF($A25-1>0,SUM(OFFSET(F$23,0,0,$A25-1,1)),0)-SUM(OFFSET($J$3,0,0,1,F$14)),0) -> 0
A26: 4 | E26: =IF(SUM(OFFSET($B$3,0,0,1,$A26))-IF($A26-1>0,SUM(OFFSET(E$23,0,0,$A26-1,1)),0)-SUM(OFFSET($J$3,0,0,1,E$14))>0,SUM(OFFSET($B$3,0,0,1,$A26))-IF($A26-1>0,SUM(OFFSET(E$23,0,0,$A26-1,1)),0)-SUM(OFFSET($J$3,0,0,1,E$14)),0) -> 120 | F26: =IF(SUM(OFFSET($B$3,0,0,1,$A26))-IF($A26-1>0,SUM(OFFSET(F$23,0,0,$A26-1,1)),0)-SUM(OFFSET($J$3,0,0,1,F$14))>0,SUM(OFFSET($B$3,0,0,1,$A26))-IF($A26-1>0,SUM(OFFSET(F$23,0,0,$A26-1,1)),0)-SUM(OFFSET($J$3,0,0,1,F$14)),0) -> 0
A27: 5 | F27: =IF(SUM(OFFSET($B$3,0,0,1,$A27))-IF($A27-1>0,SUM(OFFSET(F$23,0,0,$A27-1,1)),0)-SUM(OFFSET($J$3,0,0,1,F$14))>0,SUM(OFFSET($B$3,0,0,1,$A27))-IF($A27-1>0,SUM(OFFSET(F$23,0,0,$A27-1,1)),0)-SUM(OFFSET($J$3,0,0,1,F$14)),0) -> 0
B30: суммы
B31: =(B$3-B23)*OFFSET($B$7,0,$A23-1,1,1) -> 5600 | C31: =(B23-C23)*OFFSET($B$7,0,$A23-1,1,1) -> 39200 | D31: =(C23-D23)*OFFSET($B$7,0,$A23-1,1,1) -> 0 | E31: =(D23-E23)*OFFSET($B$7,0,$A23-1,1,1) -> 11200 | F31: =(E23-F23)*OFFSET($B$7,0,$A23-1,1,1) -> 0 | G31: npost
C32: =(C$3-C24)*OFFSET($B$7,0,$A24-1,1,1) -> 0 | D32: =(C24-D24)*OFFSET($B$7,0,$A24-1,1,1) -> 0 | E32: =(D24-E24)*OFFSET($B$7,0,$A24-1,1,1) -> 33840 | F32: =(E24-F24)*OFFSET($B$7,0,$A24-1,1,1) -> 62040
D33: =(D$3-D25)*OFFSET($B$7,0,$A25-1,1,1) -> 0 | E33: =(D25-E25)*OFFSET($B$7,0,$A25-1,1,1) -> 0 | F33: =(E25-F25)*OFFSET($B$7,0,$A25-1,1,1) -> 0
E34: =(E$3-E26)*OFFSET($B$7,0,$A26-1,1,1) -> 0 | F34: =(E26-F26)*OFFSET($B$7,0,$A26-1,1,1) -> 34200
F35: =(F$3-F27)*OFFSET($B$7,0,$A27-1,1,1) -> 0

Sheet Лист2
A1: Поступление на площадку, ед | I1: Реал КС,ед
A2: ID | B2: 1 | C2: 2 | D2: 3 | E2: 4 | F2: 5 | G2: Сумм,ед | I2: ID | J2: 1 | K2: 2 | L2: 3 | M2: 4 | N2: 5 | O2: Сумм,ед
A3: Венера | B3: 200 | C3: 340 | E3: 120 | G3: =SUM(B3:F3) -> 660 | I3: Венера | J3: 20 | K3: 140 | M3: 160 | N3: 340 | O3: =SUM(J3:N3) -> 660
A5: Стоимость единицы поступления,руб | H5: Реал КС,руб
A6: ID | B6: 1 | C6: 2 | D6: 3 | E6: 4 | F6: 5 | H6: Наценка | I6: ID | J6: 1 | K6: 2 | L6: 3 | M6: 4 | N6: 5 | O6: Сумм,руб
A7: Венера | B7: 280 | C7: 282 | D7: 283 | E7: 285 | F7: 285 | H7: 1.4 | I7: Венера | J7: =J10*$H$7 -> 7840 | K7: =K10*$H$7 -> 54880 | L7: 0 | M7: 63056 | N7: 134736 | O7: =SUM(J7:N7) -> 260512
A8: Стоимость поступления,руб | I8: Стоимость Реал КС,руб
A9: ID | B9: 1 | C9: 2 | D9: 3 | E9: 4 | F9: 5 | G9: Сумм,руб | I9: ID | J9: 1 | K9: 2 | L9: 3 | M9: 4 | N9: 5 | O9: Сумм,руб
A10: Венера | B10: =B3*B7 -> 56000 | C10: =C3*C7 -> 95880 | D10: =D3*D7 -> 0 | E10: =E3*E7 -> 34200 | F10: =F3*F7 -> 0 | G10: =SUM(B10:F10) -> 186080 | I10: Венера | J10: =SUM(B31:B35) -> 5600 | K10: =SUM(C31:C35) -> 39200 | L10: =SUM(D31:D35) -> 0 | M10: =SUM(E31:E35) -> 45040 | N10: =SUM(F31:F35) -> 96240 | O10: =SUM(J10:N10) -> 186080
L12: Единиц | M12: Стоимость ед | N12: Составная стоимость реал
A13: Остатки на площадке,ед | L13: 20 | M13: 280 | N13: =L13*M13 -> 5600
A14: ID | B14: 1 | C14: 2 | D14: 3 | E14: 4 | F14: 5 | L14: 140 | M14: 280 | N14: =L14*M14 -> 39200
A15: Венера | B15: =B3-J3 -> 180 | C15: =B15+C3-K3 -> 380 | D15: =C15+D3-L3 -> 380 | E15: =D15+E3-M3 -> 340 | F15: =E15+F3-N3 -> 0 | L15: 40 | M15: 280 | N15: 11200
L16: 120 | M16: 282 | N16: 33840
L17: 220 | M17: 282 | N17: 62040
L18: 120 | M18: 285 | N18: 34200
A22: dat
A23: 1 | B23: =IF(SUM(OFFSET($B$3,0,0,1,$A23))-IF($A23-1>0,SUM(OFFSET(B$23,0,0,$A23-1,1)),0)-SUM(OFFSET($J$3,0,0,1,B$14))>0,SUM(OFFSET($B$3,0,0,1,$A23))-IF($A23-1>0,SUM(OFFSET(B$23,0,0,$A23-1,1)),0)-SUM(OFFSET($J$3,0,0,1,B$14)),0) -> 180 | C23: =IF(SUM(OFFSET($B$3,0,0,1,$A23))-IF($A23-1>0,SUM(OFFSET(C$23,0,0,$A23-1,1)),0)-SUM(OFFSET($J$3,0,0,1,C$14))>0,SUM(OFFSET($B$3,0,0,1,$A23))-IF($A23-1>0,SUM(OFFSET(C$23,0,0,$A23-1,1)),0)-SUM(OFFSET($J$3,0,0,1,C$14)),0) -> 40 | D23: =IF(SUM(OFFSET($B$3,0,0,1,$A23))-IF($A23-1>0,SUM(OFFSET(D$23,0,0,$A23-1,1)),0)-SUM(OFFSET($J$3,0,0,1,D$14))>0,SUM(OFFSET($B$3,0,0,1,$A23))-IF($A23-1>0,SUM(OFFSET(D$23,0,0,$A23-1,1)),0)-SUM(OFFSET($J$3,0,0,1,D$14)),0) -> 40 | E23: =IF(SUM(OFFSET($B$3,0,0,1,$A23))-IF($A23-1>0,SUM(OFFSET(E$23,0,0,$A23-1,1)),0)-SUM(OFFSET($J$3,0,0,1,E$14))>0,SUM(OFFSET($B$3,0,0,1,$A23))-IF($A23-1>0,SUM(OFFSET(E$23,0,0,$A23-1,1)),0)-SUM(OFFSET($J$3,0,0,1,E$14)),0) -> 0 | F23: =IF(SUM(OFFSET($B$3,0,0,1,$A23))-IF($A23-1>0,SUM(OFFSET(F$23,0,0,$A23-1,1)),0)-SUM(OFFSET($J$3,0,0,1,F$14))>0,SUM(OFFSET($B$3,0,0,1,$A23))-IF($A23-1>0,SUM(OFFSET(F$23,0,0,$A23-1,1)),0)-SUM(OFFSET($J$3,0,0,1,F$14)),0) -> 0 | G23: npost
A24: 2 | C24: =IF(SUM(OFFSET($B$3,0,0,1,$A24))-IF($A24-1>0,SUM(OFFSET(C$23,0,0,$A24-1,1)),0)-SUM(OFFSET($J$3,0,0,1,C$14))>0,SUM(OFFSET($B$3,0,0,1,$A24))-IF($A24-1>0,SUM(OFFSET(C$23,0,0,$A24-1,1)),0)-SUM(OFFSET($J$3,0,0,1,C$14)),0) -> 340 | D24: =IF(SUM(OFFSET($B$3,0,0,1,$A24))-IF($A24-1>0,SUM(OFFSET(D$23,0,0,$A24-1,1)),0)-SUM(OFFSET($J$3,0,0,1,D$14))>0,SUM(OFFSET($B$3,0,0,1,$A24))-IF($A24-1>0,SUM(OFFSET(D$23,0,0,$A24-1,1)),0)-SUM(OFFSET($J$3,0,0,1,D$14)),0) -> 340 | E24: =IF(SUM(OFFSET($B$3,0,0,1,$A24))-IF($A24-1>0,SUM(OFFSET(E$23,0,0,$A24-1,1)),0)-SUM(OFFSET($J$3,0,0,1,E$14))>0,SUM(OFFSET($B$3,0,0,1,$A24))-IF($A24-1>0,SUM(OFFSET(E$23,0,0,$A24-1,1)),0)-SUM(OFFSET($J$3,0,0,1,E$14)),0) -> 220 | F24: =IF(SUM(OFFSET($B$3,0,0,1,$A24))-IF($A24-1>0,SUM(OFFSET(F$23,0,0,$A24-1,1)),0)-SUM(OFFSET($J$3,0,0,1,F$14))>0,SUM(OFFSET($B$3,0,0,1,$A24))-IF($A24-1>0,SUM(OFFSET(F$23,0,0,$A24-1,1)),0)-SUM(OFFSET($J$3,0,0,1,F$14)),0) -> 0
A25: 3 | D25: =IF(SUM(OFFSET($B$3,0,0,1,$A25))-IF($A25-1>0,SUM(OFFSET(D$23,0,0,$A25-1,1)),0)-SUM(OFFSET($J$3,0,0,1,D$14))>0,SUM(OFFSET($B$3,0,0,1,$A25))-IF($A25-1>0,SUM(OFFSET(D$23,0,0,$A25-1,1)),0)-SUM(OFFSET($J$3,0,0,1,D$14)),0) -> 0 | E25: =IF(SUM(OFFSET($B$3,0,0,1,$A25))-IF($A25-1>0,SUM(OFFSET(E$23,0,0,$A25-1,1)),0)-SUM(OFFSET($J$3,0,0,1,E$14))>0,SUM(OFFSET($B$3,0,0,1,$A25))-IF($A25-1>0,SUM(OFFSET(E$23,0,0,$A25-1,1)),0)-SUM(OFFSET($J$3,0,0,1,E$14)),0) -> 0 | F25: =IF(SUM(OFFSET($B$3,0,0,1,$A25))-IF($A25-1>0,SUM(OFFSET(F$23,0,0,$A25-1,1)),0)-SUM(OFFSET($J$3,0,0,1,F$14))>0,SUM(OFFSET($B$3,0,0,1,$A25))-IF($A25-1>0,SUM(OFFSET(F$23,0,0,$A25-1,1)),0)-SUM(OFFSET($J$3,0,0,1,F$14)),0) -> 0
A26: 4 | E26: =IF(SUM(OFFSET($B$3,0,0,1,$A26))-IF($A26-1>0,SUM(OFFSET(E$23,0,0,$A26-1,1)),0)-SUM(OFFSET($J$3,0,0,1,E$14))>0,SUM(OFFSET($B$3,0,0,1,$A26))-IF($A26-1>0,SUM(OFFSET(E$23,0,0,$A26-1,1)),0)-SUM(OFFSET($J$3,0,0,1,E$14)),0) -> 120 | F26: =IF(SUM(OFFSET($B$3,0,0,1,$A26))-IF($A26-1>0,SUM(OFFSET(F$23,0,0,$A26-1,1)),0)-SUM(OFFSET($J$3,0,0,1,F$14))>0,SUM(OFFSET($B$3,0,0,1,$A26))-IF($A26-1>0,SUM(OFFSET(F$23,0,0,$A26-1,1)),0)-SUM(OFFSET($J$3,0,0,1,F$14)),0) -> 0
A27: 5 | F27: =IF(SUM(OFFSET($B$3,0,0,1,$A27))-IF($A27-1>0,SUM(OFFSET(F$23,0,0,$A27-1,1)),0)-SUM(OFFSET($J$3,0,0,1,F$14))>0,SUM(OFFSET($B$3,0,0,1,$A27))-IF($A27-1>0,SUM(OFFSET(F$23,0,0,$A27-1,1)),0)-SUM(OFFSET($J$3,0,0,1,F$14)),0) -> 0
B30: суммы
B31: =(B$3-B23)*OFFSET($B$7,0,$A23-1,1,1) -> 5600 | C31: =(B23-C23)*OFFSET($B$7,0,$A23-1,1,1) -> 39200 | D31: =(C23-D23)*OFFSET($B$7,0,$A23-1,1,1) -> 0 | E31: =(D23-E23)*OFFSET($B$7,0,$A23-1,1,1) -> 11200 | F31: =(E23-F23)*OFFSET($B$7,0,$A23-1,1,1) -> 0 | G31: npost
C32: =(C$3-C24)*OFFSET($B$7,0,$A24-1,1,1) -> 0 | D32: =(C24-D24)*OFFSET($B$7,0,$A24-1,1,1) -> 0 | E32: =(D24-E24)*OFFSET($B$7,0,$A24-1,1,1) -> 33840 | F32: =(E24-F24)*OFFSET($B$7,0,$A24-1,1,1) -> 62040
D33: =(D$3-D25)*OFFSET($B$7,0,$A25-1,1,1) -> 0 | E33: =(D25-E25)*OFFSET($B$7,0,$A25-1,1,1) -> 0 | F33: =(E25-F25)*OFFSET($B$7,0,$A25-1,1,1) -> 0
E34: =(E$3-E26)*OFFSET($B$7,0,$A26-1,1,1) -> 0 | F34: =(E26-F26)*OFFSET($B$7,0,$A26-1,1,1) -> 34200
F35: =(F$3-F27)*OFFSET($B$7,0,$A27-1,1,1) -> 0

Sheet Лист3
